fUST/lending_fUST_20250603
["ID","MTS","AMOUNT","RATE_DAILY","PERIOD"]
[363925241,1748929847889,-612.796811,0.0002053,2]
[363925242,1748929847899,-93.09198985,0.0002053,2]
[363925243,1748929847913,-57.90801015,0.0002053,2]
[363925244,1748929847922,-1372.811136,0.0002053,2]
[363925245,1748929847931,-1372.811136,0.0002053,2]
[363925246,1748929847940,-458.716717,0.0002053,2]
[363925247,1748929847949,-458.716717,0.0002053,2]
[363925248,1748929847962,-151.0,0.0002053,2]
[363925249,1748929847973,-151.0,0.0002053,2]
[363925250,1748929847983,-212.86879254,0.0002053,3]
[363925251,1748929847997,-9707.30894649,0.0002053,3]
[363925252,1748929848116,-440.0,0.00016438,2]
[363925253,1748929848126,-440.0,0.00016438,2]
[363925254,1748929848135,-440.0,0.00016712,2]
[363925255,1748929848144,-470.0,0.00016986,2]
[363925256,1748929848154,-2963.45241944,0.0002053,3]
[363925257,1748929848164,-734.34,0.00020537,2]
[363925258,1748929848173,-2026.27,0.00020537,2]
[363925259,1748929848183,-1024.73,0.00020537,2]
[363925260,1748929848192,-151.0,0.00020537,2]
[363925261,1748929848202,-500.0,0.00020539,2]
[363925262,1748929848212,-16389.41782672,0.00020547,3]
[363925263,1748929848222,-28816.69578356,0.00020547,2]
[363925264,1748929848232,-151.0,0.00020547,2]
[363925265,1748929848242,-286.453742,0.00020547,2]
[363925266,1748929848252,-286.453742,0.00020547,2]
[363925267,1748929848262,-151.0,0.00020547,2]
[363925268,1748929848272,-153.622573,0.00020547,2]
[363925269,1748929848282,-153.622573,0.00020547,2]
[363925270,1748929848291,-518.773902,0.00020547,2]
[363925271,1748929848301,-518.773902,0.00020547,2]
[363925272,1748929848310,-201.080561,0.00020547,2]
[363925273,1748929848320,-151.0,0.00020547,2]
[363925274,1748929848330,-275.503422,0.00020547,2]
[363925275,1748929848340,-151.0,0.00020547,2]
[363925276,1748929848351,-217.883516,0.00020547,2]
[363925277,1748929848360,-151.0,0.00020547,2]
[363925278,1748929848370,-440.0,0.00020547,2]
[363925279,1748929848381,-440.0,0.00020547,2]
[363925280,1748929848390,-913.23,0.00020547,2]
[363925281,1748929848399,-564.19,0.00020547,2]
[363925282,1748929848411,-440.0,0.00020547,2]
[363925283,1748929848421,-440.0,0.00020547,2]
[363925284,1748929848431,-2083.82,0.00020547,2]
[363925285,1748929848443,-2014.14,0.00020547,2]
[363925286,1748929848454,-1581.67,0.00020547,2]
[363925287,1748929848464,-151.0,0.00020547,2]
[363925288,1748929848475,-151.0,0.00020547,2]
[363925289,1748929848485,-440.0,0.00020547,2]
[363925290,1748929848495,-151.0,0.00020547,2]
[363925291,1748929848505,-2327.35,0.00020547,2]
[363925292,1748929848515,-472.07,0.00020547,2]
[363925293,1748929848525,-298.851957,0.00020547,2]
[363925294,1748929848535,-457.75,0.00020547,2]
[363925295,1748929848545,-993.97,0.00020547,2]
[363925296,1748929848556,-440.0,0.00020547,2]
[363925297,1748929848566,-890.91,0.00020547,2]
[363925298,1748929848575,-975.27,0.00020547,2]
[363925299,1748929848585,-769.56,0.00020547,2]
[363925300,1748929848595,-753.04,0.00020547,2]
[363925301,1748929848605,-667.86,0.00020547,2]
[363925302,1748929848615,-440.0,0.00020547,2]
[363925303,1748929848625,-152.651511,0.00020548,2]
[363925304,1748929848635,-571.22066946,0.00020568,2]
[363925305,1748929848645,-500.0,0.00020568,2]
[363925306,1748929848655,-500.0,0.00020591,2]
[363925307,1748929848666,-500.72708819,0.00020684,2]
[363925308,1748929848676,-151.0,0.000207,4]
[363925309,1748929848686,-380.455981,0.000207,2]
[363925310,1748929848697,-380.455981,0.000207,2]
[363925311,1748929848706,-151.0,0.00020708,2]
[363925312,1748929848714,-206.375957,0.00020708,2]
[363925313,1748929848724,-206.375957,0.00020708,2]
[363925314,1748929848733,-151.71394,0.00020708,2]
[363925315,1748929848743,-191.822885,0.00020708,2]
[363925316,1748929848753,-191.822885,0.00020708,2]
[363925317,1748929848762,-207.4,0.00020708,2]
[363925318,1748929848772,-500.0,0.00020708,2]
[363925319,1748929848783,-500.0,0.00020708,2]
[363925320,1748929848794,-500.0,0.00020708,2]
[363925321,1748929848804,-500.0,0.00020708,2]
[363925322,1748929848815,-500.0,0.00020708,2]
[363925323,1748929848825,-500.0,0.00020708,2]
[363925324,1748929848835,-500.0,0.00020708,2]
[363925325,1748929848845,-500.0,0.00020708,2]
[363925326,1748929848855,-500.0,0.00020708,2]
[363925327,1748929848865,-500.0,0.00020708,2]
[363925328,1748929848875,-500.0,0.00020708,2]
[363925329,1748929848885,-500.0,0.00020708,2]
[363925330,1748929848895,-500.0,0.00020708,2]
[363925331,1748929848904,-601.58897155,0.00020708,2]
[363925332,1748929848918,-379.816853,0.00020762,2]
[363925333,1748929848927,-379.816853,0.00020762,2]
[363925334,1748929848937,-2393.8380497,0.00020762,3]
[363925335,1748929848947,-153.545985,0.00020796,2]
[363925336,1748929848956,-151.0,0.00020796,2]
[363925337,1748929848966,-151.0,0.00020796,2]
[363925338,1748929848975,-500.0,0.00020803,2]
[363925339,1748929848986,-303.51481384,0.00020803,2]
[363925340,1748929848998,-500.0,0.00020803,2]
[363925341,1748929849008,-191.53242,0.00020811,2]
[363925342,1748929849017,-191.53242,0.00020811,2]
[363925343,1748929849027,-151.0,0.00020811,2]
[363925344,1748929849036,-151.0,0.00020811,2]
[363925345,1748929849046,-734.34,0.00020811,2]
[363925346,1748929849055,-2026.27,0.00020811,2]
[363925347,1748929849071,-1024.73,0.00020811,2]
[363925348,1748929849081,-151.0,0.0002082,2]
[363925349,1748929849091,-151.0,0.00020821,2]
[363925350,1748929849100,-1344.681695,0.00020821,2]
[363925351,1748929849110,-440.0,0.00020821,2]
[363925352,1748929849120,-440.0,0.00020821,2]
[363925353,1748929849130,-151.0,0.00020821,2]
[363925354,1748929849140,-347.308096,0.00020821,2]
[363925355,1748929849150,-347.308096,0.00020821,2]
[363925356,1748929849164,-913.23,0.00020821,2]
[363925357,1748929849174,-151.0,0.00020821,2]
[363925358,1748929849185,-564.19,0.00020821,2]
[363925359,1748929849195,-440.0,0.00020821,2]
[363925360,1748929849205,-440.0,0.00020821,2]
[363925361,1748929849216,-2083.82,0.00020821,2]
[363925362,1748929849226,-2014.14,0.00020821,2]
[363925363,1748929849237,-1581.67,0.00020821,2]
[363925364,1748929849248,-151.0,0.00020821,2]
[363925365,1748929849257,-581.03,0.00020821,2]
[363925366,1748929849268,-2327.35,0.00020821,2]
[363925367,1748929849278,-472.07,0.00020821,2]
[363925368,1748929849288,-151.0,0.00020821,2]
[363925369,1748929849298,-457.75,0.00020821,2]
[363925370,1748929849308,-993.97,0.00020821,2]
[363925371,1748929849318,-440.0,0.00020821,2]
[363925372,1748929849327,-890.91,0.00020821,2]
[363925373,1748929849337,-975.27,0.00020821,2]
[363925374,1748929849348,-151.0,0.00020821,2]
[363925375,1748929849358,-151.0,0.00020821,2]
[363925376,1748929849368,-769.56,0.00020821,2]
[363925377,1748929849380,-151.0,0.00020821,2]
[363925378,1748929849391,-753.04,0.00020821,2]
[363925379,1748929849400,-667.86,0.00020821,2]
[363925380,1748929849413,-440.0,0.00020821,2]
[363925381,1748929849423,-151.0,0.000209,3]
[363925382,1748929849433,-3000.0,0.00021,2]
[363925383,1748929849444,-186.0,0.00021,7]
[363925384,1748929849454,-186.0,0.00021,7]
[363925385,1748929849465,-186.0,0.00021,7]
[363925386,1748929849476,-186.0,0.00021,6]
[363925387,1748929849486,-186.0,0.00021,6]
[363925388,1748929849495,-186.0,0.00021,6]
[363925389,1748929849505,-151.0,0.00021,2]
[363925390,1748929849515,-286.453742,0.00021,2]
[363925391,1748929849526,-286.453742,0.00021,2]
[363925392,1748929849536,-153.622573,0.00021,2]
[363925393,1748929849546,-153.622573,0.00021,2]
[363925394,1748929849555,-10000.0,0.00021,30]
[363925395,1748929849564,-151.0,0.00021,2]
[363925396,1748929849574,-151.0,0.00021,2]
[363925397,1748929849584,-151.0,0.00021,3]
[363925398,1748929849594,-151.0,0.00021,2]
[363925399,1748929849603,-1372.811136,0.00021,2]
[363925400,1748929849612,-1372.811136,0.00021,2]
[363925401,1748929849622,-458.716717,0.00021,2]
[363925402,1748929849632,-458.716717,0.00021,2]
[363925403,1748929849641,-151.0,0.00021,2]
[363925404,1748929849651,-151.0,0.00021,2]
[363925405,1748929849661,-12670.76136593,0.00021,30]
[363925406,1748929849671,-380.455981,0.00021,2]
[363925407,1748929849680,-380.455981,0.00021,2]
[363925408,1748929849690,-2393.8380497,0.00021003,4]
[363925409,1748929849700,-3000.0,0.0002101,2]
[363925410,1748929849710,-518.773902,0.0002101,2]
[363925411,1748929849720,-518.773902,0.0002101,2]
[363925412,1748929849730,-3000.0,0.0002102,2]
[363925413,1748929849740,-3000.0,0.0002103,2]
[363925414,1748929849749,-730.956112,0.0002103,2]
[363925415,1748929849759,-151.0,0.0002103,2]
[363925416,1748929849769,-295.444487,0.0002103,2]
[363925417,1748929849779,-295.444487,0.0002103,2]
[363925418,1748929849788,-248.994244,0.0002103,2]
[363925419,1748929849799,-248.994244,0.0002103,2]
[363925420,1748929849808,-377.407836,0.0002103,2]
[363925421,1748929849818,-377.407836,0.0002103,2]
[363925422,1748929849828,-612.796811,0.0002103,2]
[363925423,1748929849837,-612.796811,0.0002103,2]
[363925424,1748929849847,-3000.0,0.0002104,2]
[363925425,1748929849856,-151.0,0.0002104,2]
[363925426,1748929849866,-3000.0,0.0002105,2]
[363925427,1748929849876,-151.0,0.0002105,2]
[363925428,1748929849886,-151.0,0.0002105,2]
[363925429,1748929849896,-151.0,0.0002105,2]
[363925430,1748929849906,-271.205227,0.0002105,2]
[363925431,1748929849917,-3000.0,0.0002106,2]
[363925432,1748929849927,-700.0,0.0002106,2]
[363925433,1748929849937,-4504.130147,0.0002107,2]
[363925434,1748929849947,-151.0,0.0002107,2]
[363925435,1748929849956,-206.375957,0.0002107,2]
[363925436,1748929849966,-206.375957,0.0002107,2]
[363925437,1748929849975,-191.822885,0.0002107,2]
[363925438,1748929849986,-191.822885,0.0002107,2]
[363925439,1748929849998,-222.86371602,0.0002107,2]
[363925440,1748929850007,-734.34,0.00021085,2]
[363925441,1748929850017,-2026.27,0.00021085,2]
[363925442,1748929850027,-1024.73,0.00021085,2]
[363925443,1748929850036,-502.64044232,0.00021087,2]
[363925444,1748929850046,-151.0,0.00021095,2]
[363925445,1748929850056,-379.816853,0.00021095,2]
[363925446,1748929850068,-379.816857,0.00021095,2]
[363925447,1748929850078,-151.0,0.00021095,2]
[363925448,1748929850088,-151.0,0.00021095,2]
[363925449,1748929850097,-163.33,0.00021095,2]
[363925450,1748929850107,-440.0,0.00021095,2]
[363925451,1748929850118,-155.880545,0.00021095,2]
[363925452,1748929850127,-1372.811136,0.00021095,2]
[363925453,1748929850138,-1372.811136,0.00021095,2]
[363925454,1748929850147,-151.0,0.00021095,2]
[363925455,1748929850158,-151.0,0.00021095,2]
[363925456,1748929850168,-913.23,0.00021095,2]
[363925457,1748929850179,-564.19,0.00021095,2]
[363925458,1748929850188,-440.0,0.00021095,2]
[363925459,1748929850198,-440.0,0.00021095,2]
[363925460,1748929850209,-2083.82,0.00021095,2]
[363925461,1748929850219,-2014.14,0.00021095,2]
[363925462,1748929850229,-1581.67,0.00021095,2]
[363925463,1748929850238,-151.0,0.00021095,2]
[363925464,1748929850248,-2327.35,0.00021095,2]
[363925465,1748929850257,-472.07,0.00021095,2]
[363925466,1748929850267,-457.75,0.00021095,2]
[363925467,1748929850390,-993.97,0.00021095,2]
[363925468,1748929850400,-440.0,0.00021095,2]
[363925469,1748929850410,-890.91,0.00021095,2]
[363925470,1748929850421,-975.27,0.00021095,2]
[363925471,1748929850431,-769.56,0.00021095,2]
[363925472,1748929850440,-151.0,0.00021095,2]
[363925473,1748929850451,-753.04,0.00021095,2]
[363925474,1748929850460,-667.86,0.00021095,2]
[363925475,1748929850471,-440.0,0.00021095,2]
[363925476,1748929850480,-1008.71777,0.000211,2]
[363925477,1748929850490,-1000.0,0.00021116,2]
[363925478,1748929850500,-500.0,0.00021139,2]
[363925479,1748929850510,-500.0,0.0002114,2]
[363925480,1748929850520,-500.0,0.0002114,2]
[363925481,1748929850530,-500.0,0.0002114,2]
[363925482,1748929850540,-500.0,0.0002114,2]
[363925483,1748929850550,-500.0,0.0002114,2]
[363925484,1748929850560,-502.2606745,0.0002114,2]
[363925485,1748929850570,-500.0,0.0002114,2]
[363925486,1748929850579,-500.0,0.0002114,2]
[363925487,1748929850589,-500.0,0.0002114,2]
[363925488,1748929850599,-151.0,0.0002114,2]
[363925489,1748929850611,-151.0,0.0002114,2]
[363925490,1748929850620,-500.0,0.0002114,2]
[363925491,1748929850635,-500.0,0.0002114,2]
[363925492,1748929850645,-936.54,0.00021195,2]
[363925493,1748929850655,-151.0,0.000212,3]
[363925494,1748929850667,-997.528357,0.00021209,3]
[363925495,1748929850676,-191.53242,0.0002123,2]
[363925496,1748929850686,-191.53242,0.0002123,2]
[363925497,1748929850697,-152.009913,0.0002123,2]
[363925498,1748929850707,-151.0,0.0002123,2]
[363925499,1748929850716,-962.0,0.00021231,2]
[363925500,1748929850726,-709.0,0.00021231,2]
[363925501,1748929850735,-2227.0,0.00021231,2]
[363925502,1748929850745,-405.0,0.00021231,2]
[363925503,1748929850754,-150.0,0.00021231,2]
[363925504,1748929850763,-2393.8380497,0.00021245,4]
[363925505,1748929850773,-167.53029157,0.00021267,2]
[363925506,1748929850782,-1713.34831966,0.00021267,2]
[363925507,1748929850792,-151.0,0.00021268,16]
[363925508,1748929850802,-936.54,0.00021295,2]
[363925509,1748929850811,-161.0182729,0.00021315,2]
[363925510,1748929850821,-158.94432548,0.00021342,2]
[363925511,1748929850831,-502.13735262,0.00021351,2]
[363925512,1748929850840,-280.43071213,0.00021351,2]
[363925513,1748929850850,-734.34,0.00021359,2]
[363925514,1748929850861,-2026.27,0.00021359,2]
[363925515,1748929850870,-1024.73,0.00021359,2]
[363925516,1748929850880,-458.716717,0.00021366,2]
[363925517,1748929850891,-458.716717,0.00021366,2]
[363925518,1748929850900,-143538.97374547,0.00021367,2]
[363925523,1748930198791,1118.84,0.0001552,2]
[363925525,1748930250852,157.506949,0.00013699,2]
[363925530,1748930301280,-342.10279694,0.00015711,2]
[363925532,1748930313983,342.10279694,0.0001552,2]
[363925539,1748930543966,-182.87753159,0.00015549,2]
[363925540,1748930545483,-89.31915441,0.00015549,2]
[363925580,1748931032557,-218.79345675,0.000157,2]
[363925581,1748931032568,-787.71640238,0.00015711,2]
[363925582,1748931032616,-284.64769626,0.00015711,2]
[363925629,1748931038537,-2710.73179692,0.00015711,2]
[363925631,1748931038547,-206.1985613,0.00015848,2]
[363925632,1748931038557,-300.0,0.00016435,2]
[363925634,1748931038567,-300.0,0.00016435,2]
[363925635,1748931038576,-300.0,0.00016435,2]
[363925638,1748931038586,-1200.0,0.00016435,2]
[363925640,1748931038596,-160.0,0.00016435,2]
[363925642,1748931038607,-500.0,0.00016437,2]
[363925644,1748931038617,-500.0,0.00016437,2]
[363925646,1748931038627,-500.0,0.00016437,2]
[363925648,1748931038636,-500.0,0.00016437,2]
[363925650,1748931038645,-500.0,0.00016437,2]
[363925652,1748931038656,-591.45148553,0.00016437,2]
[363925654,1748931038665,-500.0,0.00016437,2]
[363925656,1748931038675,-371.72150007,0.00016437,2]
[363925658,1748931038684,-500.0,0.00016437,2]
[363925660,1748931038695,-419.12528269,0.00016437,2]
[363925662,1748931038705,-500.0,0.00016437,2]
[363925664,1748931038715,-500.0,0.00016437,2]
[363925666,1748931038724,-500.0,0.00016437,2]
[363925668,1748931038733,-434.77785867,0.00016437,2]
[363925670,1748931038742,-500.0,0.00016437,2]
[363925672,1748931038752,-500.0,0.00016437,2]
[363925674,1748931038763,-500.0,0.00016437,2]
[363925676,1748931038772,-500.0,0.00016437,2]
[363925678,1748931038782,-500.0,0.00016437,2]
[363925680,1748931038792,-500.0,0.00016437,2]
[363925682,1748931038802,-500.0,0.00016437,2]
[363925684,1748931038811,-500.0,0.00016437,2]
[363925686,1748931038821,-500.0,0.00016437,2]
[363925688,1748931038831,-500.0,0.00016437,2]
[363925690,1748931038840,-500.0,0.00016437,2]
[363925692,1748931038849,-500.0,0.00016437,2]
[363925694,1748931038859,-500.0,0.00016437,2]
[363925696,1748931038869,-500.0,0.00016437,2]
[363925698,1748931038879,-500.0,0.00016437,2]
[363925700,1748931038889,-500.0,0.00016437,2]
[363925702,1748931038899,-500.0,0.00016437,2]
[363925704,1748931038909,-500.0,0.00016437,2]
[363925706,1748931038919,-500.0,0.00016437,2]
[363925708,1748931038928,-500.0,0.00016437,2]
[363925710,1748931038939,-633.66898648,0.00016437,2]
[363925712,1748931038949,-500.0,0.00016437,2]
[363925714,1748931038960,-500.0,0.00016437,2]
[363925716,1748931038970,-500.0,0.00016437,2]
[363925718,1748931038981,-500.0,0.00016437,2]
[363925720,1748931038992,-500.0,0.00016437,2]
[363925723,1748931039004,-500.0,0.00016437,2]
[363925725,1748931039013,-500.0,0.00016437,2]
[363925727,1748931039024,-440.0,0.00016438,2]
[363925729,1748931039034,-440.0,0.00016438,2]
[363925731,1748931039043,-437.0822292,0.00016438,2]
[363925733,1748931039052,-430.0,0.00016438,2]
[363925735,1748931039062,-440.0,0.00016438,2]
[363925737,1748931039071,-430.0,0.00016438,2]
[363925739,1748931039081,-430.0,0.00016438,2]
[363925741,1748931039091,-430.0,0.00016438,2]
[363925743,1748931039103,-440.0,0.00016438,2]
[363925745,1748931039112,-410.0,0.00016438,2]
[363925747,1748931039121,-440.0,0.00016438,2]
[363925749,1748931039131,-410.0,0.00016438,2]
[363925751,1748931039141,-410.0,0.00016438,2]
[363925753,1748931039151,-440.0,0.00016438,2]
[363925755,1748931039160,-410.0,0.00016438,2]
[363925757,1748931039170,-521.11051851,0.00016438,2]
[363925759,1748931039180,-430.0,0.00016438,2]
[363925761,1748931039190,-430.0,0.00016438,2]
[363925763,1748931039199,-410.0,0.00016438,2]
[363925765,1748931039209,-440.0,0.00016438,2]
[363925767,1748931039218,-169.58803947,0.00016438,2]
[363925769,1748931039228,-430.0,0.00016438,2]
[363925771,1748931039237,-471.29587409,0.00016438,2]
[363925773,1748931039247,-440.0,0.00016438,2]
[363925775,1748931039258,-440.0,0.00016438,2]
[363925777,1748931039268,-430.0,0.00016438,2]
[363925779,1748931039277,-430.0,0.00016438,2]
[363925781,1748931039288,-440.0,0.00016438,2]
[363925783,1748931039299,-451.10038972,0.00016438,2]
[363925785,1748931039309,-430.0,0.00016438,2]
[363925788,1748931039319,-632.87,0.00016438,2]
[363925789,1748931039328,-430.0,0.00016438,2]
[363925792,1748931039339,-1340.71,0.00016438,2]
[363925794,1748931039348,-416.9670669,0.00016438,2]
[363925796,1748931039358,-440.0,0.00016438,2]
[363925798,1748931039367,-440.0,0.00016438,2]
[363925800,1748931039377,-440.0,0.00016438,2]
[363925802,1748931039387,-410.0,0.00016438,2]
[363925804,1748931039396,-440.0,0.00016438,2]
[363925806,1748931039411,-430.0,0.00016438,2]
[363925808,1748931039421,-988.55,0.00016438,2]
[363925810,1748931039430,-405.93106617,0.00016438,2]
[363925812,1748931039440,-870.38,0.00016438,2]
[363925814,1748931039450,-1454.59,0.00016438,2]
[363925816,1748931039460,-440.0,0.00016438,2]
[363925818,1748931039470,-1403.81,0.00016438,2]
[363925820,1748931039480,-457.50750268,0.00016438,2]
[363925822,1748931039491,-440.0,0.00016438,2]
[363925824,1748931039500,-1319.34,0.00016438,2]
[363925826,1748931039510,-621.23,0.00016438,2]
[363925828,1748931039519,-440.0,0.00016438,2]
[363925830,1748931039528,-440.0,0.00016438,2]
[363925832,1748931039538,-440.0,0.00016438,2]
[363925834,1748931039547,-440.0,0.00016438,2]
[363925836,1748931039557,-440.0,0.00016438,2]
[363925838,1748931039567,-440.0,0.00016438,2]
[363925840,1748931039577,-440.0,0.00016438,2]
[363925842,1748931039586,-203.73327283,0.00016438,2]
[363925844,1748931039596,-410.0,0.00016438,2]
[363925846,1748931039605,-417.47600792,0.00016438,2]
[363925848,1748931039614,-440.0,0.00016438,2]
[363925850,1748931039623,-620.89,0.00016438,2]
[363925852,1748931039634,-440.0,0.00016438,2]
[363925854,1748931039644,-249.60259686,0.00016438,2]
[363925856,1748931039653,-513.04,0.00016438,2]
[363925858,1748931039663,-440.0,0.00016438,2]
[363925860,1748931039673,-440.0,0.00016438,2]
[363925862,1748931039682,-430.0,0.00016438,2]
[363925864,1748931039693,-440.0,0.00016438,2]
[363925866,1748931039702,-440.0,0.00016438,2]
[363925868,1748931039712,-650.18,0.00016438,2]
[363925870,1748931039721,-529.08,0.00016438,2]
[363925872,1748931039731,-440.0,0.00016438,2]
[363925874,1748931039741,-453.71564651,0.00016438,2]
[363925876,1748931039750,-440.0,0.00016438,2]
[363925878,1748931039760,-163.57747351,0.00016438,2]
[363925880,1748931039769,-440.0,0.00016438,2]
[363925882,1748931039778,-440.0,0.00016438,2]
[363925884,1748931039788,-581.36,0.00016711,2]
[363925886,1748931039797,-870.38,0.00016711,2]
[363925888,1748931039807,-1604.13,0.00016711,2]
[363925890,1748931039815,-835.52,0.00016711,2]
[363925892,1748931039825,-358.1699,0.00016712,2]
[363925894,1748931039834,-400.0,0.00016712,2]
[363925896,1748931039844,-440.0,0.00016712,2]
[363925897,1748931039853,-440.0,0.00016712,2]
[363925898,1748931039862,-440.0,0.00016712,2]
[363925899,1748931039872,-440.0,0.00016712,2]
[363925901,1748931039881,-440.0,0.00016712,2]
[363925902,1748931039890,-440.0,0.00016712,2]
[363925903,1748931039899,-440.0,0.00016712,2]
[363925904,1748931039908,-632.87,0.00016712,2]
[363925905,1748931039916,-1340.71,0.00016712,2]
[363925906,1748931039926,-440.0,0.00016712,2]
[363925908,1748931039936,-440.0,0.00016712,2]
[363925909,1748931039945,-440.0,0.00016712,2]
[363925910,1748931039952,-988.55,0.00016712,2]
[363925911,1748931039960,-1454.59,0.00016712,2]
[363925912,1748931039968,-440.0,0.00016712,2]
[363925913,1748931039976,-1403.81,0.00016712,2]
[363925914,1748931039984,-440.0,0.00016712,2]
[363925915,1748931039993,-1319.34,0.00016712,2]
[363925916,1748931040003,-621.23,0.00016712,2]
[363925917,1748931040012,-280.54687953,0.00016712,2]
[363925918,1748931040022,-440.0,0.00016712,2]
[363925919,1748931040032,-440.0,0.00016712,2]
[363925920,1748931040042,-440.0,0.00016712,2]
[363925921,1748931040051,-440.0,0.00016712,2]
[363925922,1748931040061,-440.0,0.00016712,2]
[363925923,1748931040071,-620.89,0.00016712,2]
[363925924,1748931040080,-440.0,0.00016712,2]
[363925925,1748931040090,-513.04,0.00016712,2]
[363925926,1748931040100,-440.0,0.00016712,2]
[363925927,1748931040110,-440.0,0.00016712,2]
[363925928,1748931040119,-440.0,0.00016712,2]
[363925929,1748931040129,-440.0,0.00016712,2]
[363925930,1748931040139,-650.18,0.00016712,2]
[363925931,1748931040150,-529.08,0.00016712,2]
[363925932,1748931040162,-440.0,0.00016712,2]
[363925933,1748931040176,-440.0,0.00016712,2]
[363925934,1748931040186,-440.0,0.00016712,2]
[363925935,1748931040196,-870.38,0.00016983,2]
[363925936,1748931040206,-581.36,0.00016985,2]
[363925937,1748931040216,-870.38,0.00016985,2]
[363925938,1748931040225,-1604.13,0.00016985,2]
[363925939,1748931040235,-835.52,0.00016985,2]
[363925940,1748931040245,-440.0,0.00016986,2]
[363925941,1748931040255,-440.0,0.00016986,2]
[363925942,1748931040262,-440.0,0.00016986,2]
[363925943,1748931040271,-440.0,0.00016986,2]
[363925944,1748931040279,-440.0,0.00016986,2]
[363925945,1748931040288,-440.0,0.00016986,2]
[363925946,1748931040298,-632.87,0.00016986,2]
[363925947,1748931040307,-1340.71,0.00016986,2]
[363925948,1748931040317,-440.0,0.00016986,2]
[363925949,1748931040327,-440.0,0.00016986,2]
[363925950,1748931040336,-440.0,0.00016986,2]
[363925951,1748931040346,-988.55,0.00016986,2]
[363925952,1748931040356,-1454.59,0.00016986,2]
[363925953,1748931040366,-440.0,0.00016986,2]
[363925954,1748931040376,-1403.81,0.00016986,2]
[363925955,1748931040385,-440.0,0.00016986,2]
[363925956,1748931040395,-1319.34,0.00016986,2]
[363925957,1748931040410,-621.23,0.00016986,2]
[363925958,1748931040419,-440.0,0.00016986,2]
[363925959,1748931040429,-440.0,0.00016986,2]
[363925960,1748931040440,-492.76806273,0.00016986,2]
[363925962,1748931040450,-440.0,0.00016986,2]
[363925963,1748931040460,-440.0,0.00016986,2]
[363925965,1748931040470,-620.89,0.00016986,2]
[363925966,1748931040480,-440.0,0.00016986,2]
[363925968,1748931040490,-513.04,0.00016986,2]
[363925970,1748931040500,-440.0,0.00016986,2]
[363925971,1748931040509,-440.0,0.00016986,2]
[363925973,1748931040519,-440.0,0.00016986,2]
[363925975,1748931040528,-440.0,0.00016986,2]
[363925977,1748931040539,-650.18,0.00016986,2]
[363925978,1748931040549,-529.08,0.00016986,2]
[363925979,1748931040558,-440.0,0.00016986,2]
[363925980,1748931040568,-440.0,0.00016986,2]
[363925981,1748931040577,-440.0,0.00016986,2]
[363925982,1748931040587,-506.7984358,0.00017143,2]
[363925984,1748931040598,-500.0,0.00017188,2]
[363925985,1748931040608,-507.80432617,0.00017188,2]